[Event "Late-Titled-Tuesday-Blitz-March-12-2024"]
[Site "Chess.com"]
[Date "2024.03.12"]
[Round "7"]
[White "Angry_Twin"]
[Black "Adar_07"]
[Result "1-0"]
[WhiteElo "2984"]
[BlackElo "2815"]
[TimeControl "180+1"]
[EndTime "15:17:20 PDT"]
[Termination "Angry_Twin won on time"]

1. e4 {[%clk 0:03:00.9]} 1... c5 {[%clk 0:02:57.7]} 2. Nf3 {[%clk 0:03:01.2]}
2... a6 {[%clk 0:02:55.8]} 3. c3 {[%clk 0:02:59.5]} 3... d5 {[%clk 0:02:54.2]}
4. exd5 {[%clk 0:02:57.9]} 4... Qxd5 {[%clk 0:02:55.1]} 5. d4 {[%clk 0:02:58.1]}
5... Nc6 {[%clk 0:02:54.2]} 6. Be3 {[%clk 0:02:53.9]} 6... cxd4 {[%clk 0:02:52]}
7. cxd4 {[%clk 0:02:54]} 7... e6 {[%clk 0:02:40.8]} 8. Nc3 {[%clk 0:02:53.9]}
8... Qd8 {[%clk 0:02:38.2]} 9. Bd3 {[%clk 0:02:41.3]} 9... Nf6 {[%clk
0:02:38.2]} 10. O-O {[%clk 0:02:39.8]} 10... Be7 {[%clk 0:02:37.4]} 11. Rc1
{[%clk 0:02:36.9]} 11... O-O {[%clk 0:02:36.7]} 12. a3 {[%clk 0:02:36.2]} 12...
Bd7 {[%clk 0:02:35.2]} 13. Ne4 {[%clk 0:02:35.9]} 13... Rc8 {[%clk 0:02:31.4]}
14. Nc5 {[%clk 0:02:34.1]} 14... Bxc5 {[%clk 0:02:24.5]} 15. dxc5 {[%clk
0:02:29.7]} 15... e5 {[%clk 0:02:24.7]} 16. Bc4 {[%clk 0:02:15.9]} 16... e4
{[%clk 0:02:14.9]} 17. Nd4 {[%clk 0:01:50.2]} 17... Ne5 {[%clk 0:02:13.7]} 18.
Be2 {[%clk 0:01:50.1]} 18... Bg4 {[%clk 0:02:07.8]} 19. b4 {[%clk 0:01:26.6]}
19... Bxe2 {[%clk 0:01:56.2]} 20. Nxe2 {[%clk 0:01:27.5]} 20... Nd3 {[%clk
0:01:55.5]} 21. Rc4 {[%clk 0:01:27]} 21... Qe7 {[%clk 0:01:28.1]} 22. Qc2 {[%clk
0:01:11.1]} 22... Ng4 {[%clk 0:01:20.5]} 23. Bf4 {[%clk 0:00:56.7]} 23... Rfd8
{[%clk 0:01:03.8]} 24. Bd6 {[%clk 0:00:44.3]} 24... Qe6 {[%clk 0:00:54.5]} 25.
Rd4 {[%clk 0:00:39]} 25... Ngxf2 {[%clk 0:00:28.5]} 26. Ng3 {[%clk 0:00:21]}
26... h5 {[%clk 0:00:15.3]} 27. Rxf2 {[%clk 0:00:20.8]} 27... Nxf2 {[%clk
0:00:12.9]} 28. Qxf2 {[%clk 0:00:21.7]} 28... e3 {[%clk 0:00:11.7]} 29. Qe2
{[%clk 0:00:19.7]} 29... h4 {[%clk 0:00:07.2]} 30. Nf1 {[%clk 0:00:16.6]} 30...
Re8 {[%clk 0:00:05.3]} 31. Rd3 {[%clk 0:00:17]} 31... Qf5 {[%clk 0:00:04.6]} 32.
Rxe3 {[%clk 0:00:16.5]} 32... Rxe3 {[%clk 0:00:03.7]} 33. Qxe3 {[%clk
0:00:17.1]} 33... Qb1 {[%clk 0:00:02.7]} 34. h3 {[%clk 0:00:17.1]} 34... Rd8
{[%clk 0:00:02.5]} 35. Kf2 {[%clk 0:00:16.7]} 35... Rc8 {[%clk 0:00:02.7]} 36.
Nd2 {[%clk 0:00:16.5]} 36... Qf5+ {[%clk 0:00:02.7]} 37. Nf3 {[%clk 0:00:16.6]}
37... Qf6 {[%clk 0:00:01.9]} 38. Kg1 {[%clk 0:00:16.3]} 38... Qa1+ {[%clk
0:00:01.8]} 39. Kh2 {[%clk 0:00:16.5]} 39... Qf6 {[%clk 0:00:02.4]} 40. Qe4
{[%clk 0:00:16.9]} 40... Qc3 {[%clk 0:00:02.3]} 41. Qg4 {[%clk 0:00:13.7]} 41...
Re8 {[%clk 0:00:01.9]} 42. Qxh4 {[%clk 0:00:12.5]} 42... Qxa3 {[%clk 0:00:02.1]}
43. Qg4 {[%clk 0:00:10.7]} 43... Qe3 {[%clk 0:00:01.8]} 44. Qd7 {[%clk
0:00:08.8]} 44... Qe4 {[%clk 0:00:02.2]} 45. Ng5 {[%clk 0:00:06.6]} 1-0

[Event "Late-Titled-Tuesday-Blitz-March-12-2024"]
[Site "Chess.com"]
[Date "2024.03.12"]
[Round "7"]
[White "IranianCheetah"]
[Black "APOKALIPSA13"]
[Result "1-0"]
[WhiteElo "2374"]
[BlackElo "2192"]
[TimeControl "180+1"]
[EndTime "15:17:25 PDT"]
[Termination "IranianCheetah won by resignation"]

1. e4 {[%clk 0:01:48.2]} 1... d5 {[%clk 0:02:59.2]} 2. exd5 {[%clk 0:01:48.2]}
2... c6 {[%clk 0:02:58.8]} 3. dxc6 {[%clk 0:01:48.3]} 3... Nxc6 {[%clk 0:02:59]}
4. Nf3 {[%clk 0:01:48.8]} 4... e5 {[%clk 0:02:59.1]} 5. c3 {[%clk 0:01:49]} 5...
e4 {[%clk 0:02:59]} 6. Ng1 {[%clk 0:01:43.8]} 6... Nf6 {[%clk 0:02:57]} 7. d4
{[%clk 0:01:43.9]} 7... Bd6 {[%clk 0:02:54]} 8. g3 {[%clk 0:01:33.9]} 8... Bg4
{[%clk 0:02:49.4]} 9. Qb3 {[%clk 0:01:31.8]} 9... Qe7 {[%clk 0:02:46.3]} 10. Bg2
{[%clk 0:01:29.8]} 10... h6 {[%clk 0:02:42.6]} 11. Na3 {[%clk 0:01:27.2]} 11...
Bf3 {[%clk 0:02:35.2]} 12. Bxf3 {[%clk 0:01:18.4]} 12... exf3+ {[%clk
0:02:36.1]} 13. Kf1 {[%clk 0:01:18.7]} 13... Qe4 {[%clk 0:02:17.5]} 14. Qd1
{[%clk 0:01:11.7]} 14... Bxa3 {[%clk 0:01:41.4]} 15. bxa3 {[%clk 0:01:09.6]}
15... O-O {[%clk 0:01:25.9]} 16. Qxf3 {[%clk 0:01:08.5]} 16... Qc2 {[%clk
0:01:24.8]} 17. Bxh6 {[%clk 0:00:56.2]} 17... gxh6 {[%clk 0:01:20.3]} 18. Qxf6
{[%clk 0:00:55.9]} 18... Qxc3 {[%clk 0:01:12.6]} 19. Rd1 {[%clk 0:00:51.5]}
19... Rfe8 {[%clk 0:01:06.9]} 20. Nf3 {[%clk 0:00:41.6]} 20... Re6 {[%clk
0:01:05]} 21. Qf4 {[%clk 0:00:41.7]} 21... Rae8 {[%clk 0:01:00.9]} 22. d5 {[%clk
0:00:40.3]} 22... Rf6 {[%clk 0:01:00.8]} 23. Qg4+ {[%clk 0:00:36.9]} 23... Rg6
{[%clk 0:00:51.3]} 24. Qh5 {[%clk 0:00:25.3]} 24... Ne5 {[%clk 0:00:44.1]} 25.
Nxe5 {[%clk 0:00:25.1]} 25... Rxe5 {[%clk 0:00:45]} 26. Qh4 {[%clk 0:00:20.6]}
26... Qb2 {[%clk 0:00:27.7]} 27. Kg2 {[%clk 0:00:18.9]} 27... Re2 {[%clk
0:00:26.7]} 28. Rhf1 {[%clk 0:00:18.3]} 28... Rf6 {[%clk 0:00:26.7]} 29. Qd4
{[%clk 0:00:17.2]} 29... Qxd4 {[%clk 0:00:21.1]} 30. Rxd4 {[%clk 0:00:17.6]}
30... Rd6 {[%clk 0:00:20.5]} 31. Rc1 {[%clk 0:00:16.8]} 31... Rxa2 {[%clk
0:00:20.1]} 32. Rc8+ {[%clk 0:00:14.7]} 32... Kg7 {[%clk 0:00:20.2]} 33. Re8
{[%clk 0:00:13.4]} 33... Rxa3 {[%clk 0:00:19.8]} 34. Re7 {[%clk 0:00:12.7]}
34... h5 {[%clk 0:00:18.2]} 35. Rxb7 {[%clk 0:00:10.5]} 35... Ra5 {[%clk
0:00:16.5]} 36. Rf4 {[%clk 0:00:09.7]} 36... Rf6 {[%clk 0:00:12]} 37. Rxf6
{[%clk 0:00:06.8]} 37... Kxf6 {[%clk 0:00:12.9]} 38. d6 {[%clk 0:00:07.1]} 38...
Ke6 {[%clk 0:00:12.7]} 39. d7 {[%clk 0:00:07.3]} 39... Rd5 {[%clk 0:00:12.8]}
40. Rxa7 {[%clk 0:00:07.8]} 40... Rxd7 {[%clk 0:00:12.6]} 41. Rxd7 {[%clk
0:00:08]} 41... Kxd7 {[%clk 0:00:13.5]} 42. Kh3 {[%clk 0:00:08.7]} 42... Ke6
{[%clk 0:00:14.3]} 43. Kh4 {[%clk 0:00:09.6]} 43... Kf5 {[%clk 0:00:13.5]} 44.
Kxh5 {[%clk 0:00:09.3]} 44... f6 {[%clk 0:00:13.7]} 45. f3 {[%clk 0:00:09]}
45... Ke5 {[%clk 0:00:13.6]} 46. Kg6 {[%clk 0:00:09.9]} 46... f5 {[%clk
0:00:14.1]} 47. h4 {[%clk 0:00:10.6]} 47... f4 {[%clk 0:00:14.4]} 48. g4 {[%clk
0:00:11.2]} 48... Kd4 {[%clk 0:00:14.7]} 49. h5 {[%clk 0:00:11.2]} 49... Ke3
{[%clk 0:00:15.6]} 50. h6 {[%clk 0:00:12]} 50... Kxf3 {[%clk 0:00:16.4]} 51. h7
{[%clk 0:00:12.8]} 51... Kg2 {[%clk 0:00:17.2]} 52. h8=Q {[%clk 0:00:13.7]}
52... f3 {[%clk 0:00:18]} 53. Qd4 {[%clk 0:00:13.6]} 53... f2 {[%clk 0:00:15.3]}
54. Qxf2+ {[%clk 0:00:13.6]} 54... Kxf2 {[%clk 0:00:16.2]} 55. Kf5 {[%clk
0:00:14]} 1-0

[Event "Late-Titled-Tuesday-Blitz-March-12-2024"]
[Site "Chess.com"]
[Date "2024.03.12"]
[Round "7"]
[White "Knjazj"]
[Black "BebeBonito2022"]
[Result "0-1"]
[WhiteElo "2017"]
[BlackElo "2307"]
[TimeControl "180+1"]
[EndTime "15:17:27 PDT"]
[Termination "BebeBonito2022 won by resignation"]

1. e4 {[%clk 0:03:00.9]} 1... e5 {[%clk 0:02:59.8]} 2. Nf3 {[%clk 0:03:00.3]}
2... Nc6 {[%clk 0:03:00.2]} 3. Bc4 {[%clk 0:02:56.1]} 3... Nf6 {[%clk
0:02:59.6]} 4. d3 {[%clk 0:02:52.5]} 4... Bc5 {[%clk 0:02:59]} 5. c3 {[%clk
0:02:52.2]} 5... a6 {[%clk 0:02:59]} 6. Bg5 {[%clk 0:02:51]} 6... h6 {[%clk
0:02:56.9]} 7. Be3 {[%clk 0:02:49.6]} 7... Bxe3 {[%clk 0:02:52.4]} 8. fxe3
{[%clk 0:02:49.9]} 8... d6 {[%clk 0:02:51.4]} 9. O-O {[%clk 0:02:49.3]} 9... O-O
{[%clk 0:02:49.4]} 10. Nbd2 {[%clk 0:02:41.5]} 10... Na5 {[%clk 0:02:49.2]} 11.
Bb3 {[%clk 0:02:38.7]} 11... Nxb3 {[%clk 0:02:49.2]} 12. axb3 {[%clk 0:02:39.1]}
12... c5 {[%clk 0:02:42.4]} 13. h3 {[%clk 0:02:33.5]} 13... b5 {[%clk
0:02:37.2]} 14. Qe2 {[%clk 0:02:24.7]} 14... Re8 {[%clk 0:02:33.9]} 15. Qf2
{[%clk 0:02:23.6]} 15... d5 {[%clk 0:02:25.8]} 16. exd5 {[%clk 0:02:18.3]} 16...
Qxd5 {[%clk 0:02:25.4]} 17. d4 {[%clk 0:02:14.2]} 17... exd4 {[%clk 0:01:49.9]}
18. exd4 {[%clk 0:02:12]} 18... cxd4 {[%clk 0:01:48.4]} 19. Nxd4 {[%clk
0:02:09.4]} 19... Bd7 {[%clk 0:01:38]} 20. N2f3 {[%clk 0:02:08.3]} 20... Qh5
{[%clk 0:01:16.1]} 21. Rad1 {[%clk 0:02:01.4]} 21... Ne4 {[%clk 0:01:14.1]} 22.
Qh4 {[%clk 0:01:53.6]} 22... Qxh4 {[%clk 0:01:12]} 23. Nxh4 {[%clk 0:01:53.6]}
23... Rad8 {[%clk 0:01:05.2]} 24. Nhf3 {[%clk 0:01:52.2]} 24... Ng3 {[%clk
0:00:59.8]} 25. Rfe1 {[%clk 0:01:48.8]} 25... Nf5 {[%clk 0:00:50.5]} 26. Nxf5
{[%clk 0:01:38.4]} 26... Bxf5 {[%clk 0:00:49.6]} 27. Rxe8+ {[%clk 0:01:35.6]}
27... Rxe8 {[%clk 0:00:49.1]} 28. Nd4 {[%clk 0:01:35]} 28... Bg6 {[%clk
0:00:36.6]} 29. Kf2 {[%clk 0:01:34.3]} 29... f6 {[%clk 0:00:34.5]} 30. Re1
{[%clk 0:01:33.1]} 30... Rxe1 {[%clk 0:00:31.8]} 31. Kxe1 {[%clk 0:01:33.4]}
31... Bf7 {[%clk 0:00:28.2]} 32. b4 {[%clk 0:01:30]} 32... Bd5 {[%clk
0:00:28.5]} 33. Kf2 {[%clk 0:01:29.5]} 33... Kf7 {[%clk 0:00:28.8]} 34. g4
{[%clk 0:01:29.3]} 34... g6 {[%clk 0:00:24.9]} 35. Ke3 {[%clk 0:01:29.4]} 35...
Ke7 {[%clk 0:00:21.3]} 36. h4 {[%clk 0:01:27.8]} 36... Kd6 {[%clk 0:00:19.3]}
37. Kf4 {[%clk 0:01:24.8]} 37... Be6 {[%clk 0:00:18.3]} 38. h5 {[%clk
0:01:05.1]} 38... g5+ {[%clk 0:00:15.9]} 39. Kf3 {[%clk 0:01:00.9]} 39... Bd7
{[%clk 0:00:14]} 40. Ke3 {[%clk 0:00:59.1]} 40... Bxg4 {[%clk 0:00:13.7]} 41.
Ke4 {[%clk 0:00:58.7]} 41... Bd7 {[%clk 0:00:12.2]} 42. Nb3 {[%clk 0:00:56.3]}
42... f5+ {[%clk 0:00:11.9]} 43. Ke3 {[%clk 0:00:55.6]} 43... Ke5 {[%clk
0:00:10.3]} 44. Nd4 {[%clk 0:00:53.3]} 44... f4+ {[%clk 0:00:09.5]} 45. Kf3
{[%clk 0:00:53.4]} 45... g4+ {[%clk 0:00:09.4]} 46. Kf2 {[%clk 0:00:53.2]} 46...
Ke4 {[%clk 0:00:09.8]} 47. Nb3 {[%clk 0:00:51]} 47... g3+ {[%clk 0:00:09.9]} 48.
Kg2 {[%clk 0:00:51]} 48... Bc6 {[%clk 0:00:09.6]} 49. Kf1 {[%clk 0:00:48.5]}
49... Ke3 {[%clk 0:00:09.3]} 50. Nd4 {[%clk 0:00:46.7]} 50... Bd5 {[%clk
0:00:08.3]} 51. Nf5+ {[%clk 0:00:45.5]} 51... Kd2 {[%clk 0:00:07.9]} 52. Nxh6
{[%clk 0:00:45.2]} 52... f3 {[%clk 0:00:07.8]} 53. Ng4 {[%clk 0:00:43.9]} 53...
Bc4+ {[%clk 0:00:06.7]} 54. Kg1 {[%clk 0:00:43.4]} 54... Ke2 {[%clk 0:00:06.8]}
55. h6 {[%clk 0:00:42]} 55... f2+ {[%clk 0:00:07.2]} 56. Nxf2 {[%clk 0:00:41.2]}
56... gxf2+ {[%clk 0:00:08.1]} 57. Kg2 {[%clk 0:00:41.2]} 57... f1=Q+ {[%clk
0:00:08.4]} 58. Kg3 {[%clk 0:00:41.7]} 58... Qf6 {[%clk 0:00:08.4]} 59. Kg4
{[%clk 0:00:41.6]} 59... Qxh6 {[%clk 0:00:08.4]} 60. b3 {[%clk 0:00:41.2]} 60...
Bxb3 {[%clk 0:00:08.2]} 61. Kf5 {[%clk 0:00:40.4]} 61... Bc4 {[%clk 0:00:08.7]}
62. Ke4 {[%clk 0:00:40.8]} 62... Qd2 {[%clk 0:00:09.1]} 63. Ke5 {[%clk
0:00:39.8]} 63... Qxc3+ {[%clk 0:00:09.4]} 64. Kd6 {[%clk 0:00:40.5]} 64...
Qxb4+ {[%clk 0:00:09.7]} 65. Kc7 {[%clk 0:00:41.1]} 65... a5 {[%clk 0:00:10.2]}
66. Kb6 {[%clk 0:00:41.5]} 66... a4 {[%clk 0:00:10.8]} 0-1

[Event "Late-Titled-Tuesday-Blitz-March-12-2024"]
[Site "Chess.com"]
[Date "2024.03.12"]
[Round "7"]
[White "Iljiushenok_Ilya"]
[Black "maximnovik"]
[Result "1/2-1/2"]
[WhiteElo "2776"]
[BlackElo "2599"]
[TimeControl "180+1"]
[EndTime "15:17:30 PDT"]
[Termination "Game drawn by repetition"]

1. e4 {[%clk 0:02:58]} 1... c6 {[%clk 0:02:59]} 2. Nf3 {[%clk 0:02:57.4]} 2...
d5 {[%clk 0:02:59.2]} 3. d3 {[%clk 0:02:58.3]} 3... Nd7 {[%clk 0:02:58.8]} 4.
Nc3 {[%clk 0:02:54.8]} 4... e6 {[%clk 0:02:54.9]} 5. d4 {[%clk 0:02:51.1]} 5...
dxe4 {[%clk 0:02:52.3]} 6. Nxe4 {[%clk 0:02:50.5]} 6... Ngf6 {[%clk 0:02:52.2]}
7. Bd3 {[%clk 0:02:51.2]} 7... Nxe4 {[%clk 0:02:51]} 8. Bxe4 {[%clk 0:02:52.1]}
8... Nf6 {[%clk 0:02:51.5]} 9. Bg5 {[%clk 0:02:52.8]} 9... Be7 {[%clk
0:02:45.3]} 10. Bxf6 {[%clk 0:02:52.3]} 10... Bxf6 {[%clk 0:02:45.4]} 11. Qd3
{[%clk 0:02:53]} 11... Qa5+ {[%clk 0:02:34]} 12. c3 {[%clk 0:02:53.2]} 12... g6
{[%clk 0:02:10.6]} 13. h4 {[%clk 0:02:49.9]} 13... Bd7 {[%clk 0:01:54]} 14. a3
{[%clk 0:02:34.3]} 14... O-O-O {[%clk 0:01:45.8]} 15. O-O-O {[%clk 0:02:33.5]}
15... Kb8 {[%clk 0:01:40.8]} 16. Qe3 {[%clk 0:02:32]} 16... Qc7 {[%clk 0:01:37]}
17. h5 {[%clk 0:02:30.7]} 17... Bc8 {[%clk 0:01:19.8]} 18. Kb1 {[%clk
0:02:30.6]} 18... a6 {[%clk 0:01:19]} 19. g3 {[%clk 0:02:29.2]} 19... Rhe8
{[%clk 0:00:58.6]} 20. Bc2 {[%clk 0:02:05.6]} 20... Re7 {[%clk 0:00:47.8]} 21.
Ne5 {[%clk 0:01:48]} 21... c5 {[%clk 0:00:42]} 22. Qf4 {[%clk 0:01:47.9]} 22...
Bxe5 {[%clk 0:00:40.8]} 23. dxe5 {[%clk 0:01:48.8]} 23... Rxd1+ {[%clk
0:00:38.1]} 24. Rxd1 {[%clk 0:01:49.7]} 24... Rd7 {[%clk 0:00:37.7]} 25. Re1
{[%clk 0:01:45.2]} 25... b6 {[%clk 0:00:34.3]} 26. Qh6 {[%clk 0:01:43]} 26...
gxh5 {[%clk 0:00:24.2]} 27. Bxh7 {[%clk 0:01:28.5]} 27... Bb7 {[%clk 0:00:23.3]}
28. Qxh5 {[%clk 0:01:25.4]} 28... Rd2 {[%clk 0:00:22.8]} 29. f4 {[%clk
0:01:15.6]} 29... Qd7 {[%clk 0:00:21.4]} 30. Bc2 {[%clk 0:01:02.1]} 30... Bc6
{[%clk 0:00:20.3]} 31. Rd1 {[%clk 0:00:55.6]} 31... Rxd1+ {[%clk 0:00:09.3]} 32.
Qxd1 {[%clk 0:00:56.5]} 32... Qxd1+ {[%clk 0:00:08.2]} 33. Bxd1 {[%clk
0:00:57.4]} 33... Kc7 {[%clk 0:00:08.3]} 34. Kc1 {[%clk 0:00:57.9]} 34... Kd8
{[%clk 0:00:08.7]} 35. Kd2 {[%clk 0:00:58.6]} 35... Ke7 {[%clk 0:00:09.6]} 36.
Ke3 {[%clk 0:00:58.7]} 36... f5 {[%clk 0:00:08.9]} 37. b4 {[%clk 0:00:52.3]}
37... a5 {[%clk 0:00:08.6]} 38. Bf3 {[%clk 0:00:46.4]} 38... Bb5 {[%clk
0:00:08.6]} 39. g4 {[%clk 0:00:44]} 39... fxg4 {[%clk 0:00:08.4]} 40. Bxg4
{[%clk 0:00:44.9]} 40... Bc4 {[%clk 0:00:08.7]} 41. bxa5 {[%clk 0:00:43.5]}
41... bxa5 {[%clk 0:00:08.9]} 42. Be2 {[%clk 0:00:41.4]} 42... Bb3 {[%clk
0:00:09]} 43. Bd3 {[%clk 0:00:36.7]} 43... Bd5 {[%clk 0:00:09.1]} 44. f5 {[%clk
0:00:35.4]} 44... exf5 {[%clk 0:00:09.3]} 45. Bxf5 {[%clk 0:00:36.3]} 45... Bc4
{[%clk 0:00:09.5]} 46. Kf4 {[%clk 0:00:33.3]} 46... Bb3 {[%clk 0:00:09.3]} 47.
Bd3 {[%clk 0:00:27.8]} 47... Bd5 {[%clk 0:00:09.4]} 48. Be4 {[%clk 0:00:26.2]}
48... Bc4 {[%clk 0:00:09.6]} 49. Bf5 {[%clk 0:00:23.9]} 49... Bd5 {[%clk
0:00:09.6]} 50. Ke3 {[%clk 0:00:22.5]} 50... Bc4 {[%clk 0:00:09.9]} 51. Bd3
{[%clk 0:00:18.3]} 51... Bd5 {[%clk 0:00:10.1]} 52. Bf5 {[%clk 0:00:10.8]}
1/2-1/2

[Event "Late-Titled-Tuesday-Blitz-March-12-2024"]
[Site "Chess.com"]
[Date "2024.03.12"]
[Round "7"]
[White "Moultino06"]
[Black "NelsonLinda"]
[Result "1-0"]
[WhiteElo "2821"]
[BlackElo "2639"]
[TimeControl "180+1"]
[EndTime "15:17:32 PDT"]
[Termination "Moultino06 won on time"]

1. d4 {[%clk 0:02:59.5]} 1... d5 {[%clk 0:02:55.5]} 2. Bf4 {[%clk 0:02:58.7]}
2... Nf6 {[%clk 0:02:44.2]} 3. Nc3 {[%clk 0:02:56.8]} 3... a6 {[%clk 0:02:40.9]}
4. e3 {[%clk 0:02:51.9]} 4... c5 {[%clk 0:02:40.6]} 5. Nf3 {[%clk 0:02:40.9]}
5... cxd4 {[%clk 0:02:40.2]} 6. exd4 {[%clk 0:02:41]} 6... Nc6 {[%clk
0:02:40.2]} 7. Ne5 {[%clk 0:02:41.1]} 7... Bf5 {[%clk 0:02:33.6]} 8. g4 {[%clk
0:02:19.6]} 8... Bg6 {[%clk 0:02:33.1]} 9. h4 {[%clk 0:02:16.9]} 9... Qb6 {[%clk
0:02:06.2]} 10. Nxc6 {[%clk 0:01:35.4]} 10... bxc6 {[%clk 0:02:02.7]} 11. h5
{[%clk 0:01:27.8]} 11... Qxb2 {[%clk 0:01:55.4]} 12. Rh3 {[%clk 0:01:12.5]}
12... Bxc2 {[%clk 0:01:50.9]} 13. Qc1 {[%clk 0:01:12.2]} 13... Qxc1+ {[%clk
0:00:34.6]} 14. Rxc1 {[%clk 0:01:13.1]} 14... Be4 {[%clk 0:00:35.5]} 15. f3
{[%clk 0:01:02.6]} 15... Bxf3 {[%clk 0:00:24]} 16. Rxf3 {[%clk 0:01:01.7]} 16...
Nxg4 {[%clk 0:00:24.5]} 17. Na4 {[%clk 0:00:55.9]} 17... e6 {[%clk 0:00:22.7]}
18. Rb3 {[%clk 0:00:47.5]} 18... Nf6 {[%clk 0:00:15.6]} 19. Nb6 {[%clk
0:00:41.2]} 19... Ra7 {[%clk 0:00:06.9]} 20. Nc8 {[%clk 0:00:40.8]} 20... Ra8
{[%clk 0:00:06.9]} 21. Rxc6 {[%clk 0:00:40.5]} 21... Nxh5 {[%clk 0:00:05.2]} 22.
Bb8 {[%clk 0:00:31.6]} 22... Be7 {[%clk 0:00:02.4]} 23. Rb7 {[%clk 0:00:27]}
23... Bh4+ {[%clk 0:00:02.2]} 24. Kd1 {[%clk 0:00:27.1]} 24... O-O {[%clk
0:00:03.1]} 25. Bxa6 {[%clk 0:00:22.8]} 25... Nf4 {[%clk 0:00:02]} 26. Ne7+
{[%clk 0:00:21.3]} 26... Bxe7 {[%clk 0:00:01.8]} 27. Bxf4 {[%clk 0:00:22.2]}
27... Bf6 {[%clk 0:00:01.7]} 28. Bd6 {[%clk 0:00:19.6]} 28... Rfd8 {[%clk
0:00:01.5]} 29. Bc5 {[%clk 0:00:19.5]} 29... g5 {[%clk 0:00:01.1]} 30. Ke2
{[%clk 0:00:16.3]} 30... Rdb8 {[%clk 0:00:01.7]} 31. Rxb8+ {[%clk 0:00:13.5]}
31... Rxb8 {[%clk 0:00:02.6]} 32. Rc8+ {[%clk 0:00:14.1]} 32... Rxc8 {[%clk
0:00:03.3]} 33. Bxc8 {[%clk 0:00:15]} 33... h5 {[%clk 0:00:03.3]} 34. Bb6 {[%clk
0:00:09.6]} 34... Be7 {[%clk 0:00:02.5]} 35. a4 {[%clk 0:00:09.5]} 35... Bb4
{[%clk 0:00:03.1]} 36. a5 {[%clk 0:00:09.9]} 36... Bxa5 {[%clk 0:00:03.5]} 37.
Bxa5 {[%clk 0:00:10.8]} 37... Kg7 {[%clk 0:00:03.2]} 38. Bc7 {[%clk 0:00:10.8]}
38... Kf6 {[%clk 0:00:03.4]} 39. Kf3 {[%clk 0:00:10.5]} 39... Kf5 {[%clk
0:00:03.9]} 40. Ba6 {[%clk 0:00:09.9]} 40... g4+ {[%clk 0:00:02.6]} 41. Ke3
{[%clk 0:00:10.2]} 41... Kg5 {[%clk 0:00:01.9]} 42. Bb5 {[%clk 0:00:05.8]} 42...
h4 {[%clk 0:00:01.7]} 43. Bf4+ {[%clk 0:00:05.7]} 43... Kf5 {[%clk 0:00:01.8]}
44. Bd3+ {[%clk 0:00:05.7]} 44... Kf6 {[%clk 0:00:02.5]} 45. Bd6 {[%clk
0:00:04.1]} 45... Kg5 {[%clk 0:00:02.4]} 46. Kf2 {[%clk 0:00:04.5]} 46... f6
{[%clk 0:00:02.4]} 47. Be7 {[%clk 0:00:04.1]} 47... h3 {[%clk 0:00:01]} 48. Kg3
{[%clk 0:00:04.5]} 1-0

[Event "Late-Titled-Tuesday-Blitz-March-12-2024"]
[Site "Chess.com"]
[Date "2024.03.12"]
[Round "7"]
[White "Svet_1502"]
[Black "falzehope0"]
[Result "1-0"]
[WhiteElo "2244"]
[BlackElo "2418"]
[TimeControl "180+1"]
[EndTime "15:17:33 PDT"]
[Termination "Svet_1502 won on time"]

1. d4 {[%clk 0:03:00.9]} 1... d6 {[%clk 0:02:56.3]} 2. Nf3 {[%clk 0:02:59.7]}
2... Nf6 {[%clk 0:02:56]} 3. g3 {[%clk 0:03:00.1]} 3... Nbd7 {[%clk 0:02:55.4]}
4. Bg2 {[%clk 0:03:00.6]} 4... e5 {[%clk 0:02:55.7]} 5. dxe5 {[%clk 0:02:57.5]}
5... dxe5 {[%clk 0:02:55.1]} 6. O-O {[%clk 0:02:57.5]} 6... Be7 {[%clk
0:02:55.6]} 7. c4 {[%clk 0:02:57.4]} 7... O-O {[%clk 0:02:55.5]} 8. Qc2 {[%clk
0:02:57.7]} 8... c6 {[%clk 0:02:53.2]} 9. Nc3 {[%clk 0:02:56.2]} 9... Qc7 {[%clk
0:02:52.4]} 10. Rb1 {[%clk 0:02:47]} 10... Re8 {[%clk 0:02:52.1]} 11. b4 {[%clk
0:02:43]} 11... Nf8 {[%clk 0:02:51.8]} 12. Bg5 {[%clk 0:02:37.8]} 12... Ng6
{[%clk 0:02:41]} 13. Nd2 {[%clk 0:02:16]} 13... Be6 {[%clk 0:02:37.4]} 14. a4
{[%clk 0:02:07.7]} 14... Qc8 {[%clk 0:02:36.4]} 15. b5 {[%clk 0:01:58.3]} 15...
Bh3 {[%clk 0:02:33.8]} 16. Bxf6 {[%clk 0:01:53.8]} 16... Bxg2 {[%clk 0:02:28.5]}
17. Kxg2 {[%clk 0:01:52.9]} 17... gxf6 {[%clk 0:02:19.3]} 18. e4 {[%clk
0:01:45.8]} 18... Qg4 {[%clk 0:02:15.7]} 19. Qd1 {[%clk 0:01:24.2]} 19... Qg5
{[%clk 0:02:03]} 20. Nf3 {[%clk 0:01:14.9]} 20... Qh6 {[%clk 0:01:54.5]} 21. Qe2
{[%clk 0:00:57.9]} 21... Kh8 {[%clk 0:01:42.7]} 22. bxc6 {[%clk 0:00:40.2]}
22... bxc6 {[%clk 0:01:43.6]} 23. Rb7 {[%clk 0:00:39.7]} 23... Rg8 {[%clk
0:01:43.4]} 24. Kh1 {[%clk 0:00:39.9]} 24... a5 {[%clk 0:01:27.7]} 25. Nd1
{[%clk 0:00:21.7]} 25... Bc5 {[%clk 0:01:14.6]} 26. Rxf7 {[%clk 0:00:16.4]}
26... Raf8 {[%clk 0:00:59]} 27. Rxf8 {[%clk 0:00:16.1]} 27... Rxf8 {[%clk
0:00:59.9]} 28. Ne3 {[%clk 0:00:14.5]} 28... Ne7 {[%clk 0:00:48.3]} 29. Nf5
{[%clk 0:00:12.2]} 29... Nxf5 {[%clk 0:00:47.4]} 30. exf5 {[%clk 0:00:13.1]}
30... Qh5 {[%clk 0:00:46.1]} 31. Qe4 {[%clk 0:00:13.1]} 31... Bb4 {[%clk
0:00:36.9]} 32. Kg2 {[%clk 0:00:13.2]} 32... c5 {[%clk 0:00:36.4]} 33. Rd1
{[%clk 0:00:13.1]} 33... Rg8 {[%clk 0:00:35.2]} 34. Rd7 {[%clk 0:00:12.9]} 34...
Qe8 {[%clk 0:00:26.7]} 35. Qd5 {[%clk 0:00:09.2]} 35... Qh5 {[%clk 0:00:19.6]}
36. Qf7 {[%clk 0:00:07.5]} 36... Qxf7 {[%clk 0:00:14.8]} 37. Rxf7 {[%clk
0:00:08.4]} 37... Re8 {[%clk 0:00:10.7]} 38. Rxf6 {[%clk 0:00:08.3]} 38... Kg7
{[%clk 0:00:09.9]} 39. Re6 {[%clk 0:00:06.1]} 39... Rxe6 {[%clk 0:00:09.3]} 40.
fxe6 {[%clk 0:00:07]} 40... Kf6 {[%clk 0:00:09.9]} 41. Ng5 {[%clk 0:00:06.9]}
41... h6 {[%clk 0:00:07.2]} 42. Ne4+ {[%clk 0:00:06.8]} 42... Kxe6 {[%clk
0:00:07.3]} 43. Kf3 {[%clk 0:00:07.4]} 43... Kf5 {[%clk 0:00:07.4]} 44. g4+
{[%clk 0:00:07.9]} 44... Ke6 {[%clk 0:00:07.4]} 45. h4 {[%clk 0:00:08.2]} 45...
Ba3 {[%clk 0:00:07.1]} 46. g5 {[%clk 0:00:08.3]} 46... hxg5 {[%clk 0:00:08]} 47.
hxg5 {[%clk 0:00:09.2]} 47... Kf5 {[%clk 0:00:08.3]} 48. Ke3 {[%clk 0:00:08]}
48... Bc1+ {[%clk 0:00:06.8]} 49. Kd3 {[%clk 0:00:08.9]} 49... Bxg5 {[%clk
0:00:06.7]} 50. Nxc5 {[%clk 0:00:09.3]} 50... Bh4 {[%clk 0:00:05.3]} 51. f3
{[%clk 0:00:09.3]} 51... Be1 {[%clk 0:00:04.8]} 52. Nb3 {[%clk 0:00:08.1]} 52...
Kf4 {[%clk 0:00:04.1]} 53. Ke2 {[%clk 0:00:07.3]} 53... Bb4 {[%clk 0:00:04]} 54.
c5 {[%clk 0:00:07.9]} 54... e4 {[%clk 0:00:02]} 55. fxe4 {[%clk 0:00:08.2]}
55... Kxe4 {[%clk 0:00:02.9]} 56. c6 {[%clk 0:00:09.1]} 1-0